Cogmind - Beta 13 @@@ ROGUE MODE // 2024.04.22 @ 21:55:53 Player: Bace Troncons Result: Destroyed by Y-45 Defender with Heavy Assault Rifle Performance ------------- Evolutions (2) 1000 Regions Visited (5) 1000 Robots Destroyed (34) 170 Value Destroyed (765) 765 Prototype IDs (4) 80 Alien Tech Used (0) 0 Bonus (166) 166 TOTAL SCORE: 3181 Bonus ------- Follower Combat Kills 179 Friendly Fire -13 Cogmind --------- Core Integrity 0/550 Matter 134/300 Energy 68/125 System Corruption 0% Temperature Cool (27) Movement Walking (190) Ox1 Location -8/Materials Parts ------- > --- POWER (1) -------- Light Ion Engine > --- PROPULSION (2) --- Aluminum Leg > --- UTILITY (6) ------ Medium Storage Unit Signal Interpreter > --- WEAPON (2) ------- Hammer Mining Claw > --- INVENTORY (10) --- Aluminum Leg Assault Rifle Datajack Datajack Peak State ------------ > --- POWER ------------ Reinforced Ion Engine > --- PROPULSION ------- Aluminum Leg Aluminum Leg > --- UTILITY ---------- Medium Storage Unit Visual Processing Unit Signal Interpreter Advanced Targeting Computer Recoil Stabilizer Reaction Control System > --- WEAPON ----------- Light Cannon Shock Bomb Launcher > --- INVENTORY -------- Light Ion Engine Aluminum Leg Assault Rifle Flak Cannon Grenade Launcher Datajack Datajack Hammer Mining Claw [Rating: 22] Favorites ----------- Power Ion Engine Engine Ion Engine Propulsion Light Treads Treads Light Treads Leg Aluminum Leg Utility Medium Storage Unit Device Weight Redist. System Storage Medium Storage Unit Processor Targeting Computer Hackware Hacking Suite Protection Heavy Armor Plating Weapon Assault Rifle Ballistic Gun Assault Rifle Ballistic Cannon Light Cannon Launcher Grenade Launcher Slashing Weapon Mining Claw Special Melee Weapon Datajack Build | -11 -10 -10 -10 -9 -8 ------- Run | Yrd Mat Min Exi Min Mat Slots Evolved 4 | . . . . . 4 Power . | . . . . . . Propulsion . | . . . . . . Utility 4 | . . . . . 4 Weapon . | . . . . . . Parts Attached 50 | 6 11 2 1 11 19 Power 5 | 1 . 1 . 2 1 Engine 5 | 1 . 1 . 2 1 Core . | . . . . . . Reactor . | . . . . . . Propulsion 7 | 2 . . . 3 2 Treads 3 | 2 . . . 1 . Leg 4 | . . . . 2 2 Wheel . | . . . . . . Hover . | . . . . . . Flight . | . . . . . . Utility 11 | 1 3 . . 1 6 Device 3 | . 1 . . . 2 Storage 2 | 1 1 . . . . Processor 4 | . 1 . . 1 2 Hackware 1 | . . . . . 1 Protection 1 | . . . . . 1 Artifact . | . . . . . . Weapon 27 | 2 8 1 1 5 10 Energy Gun . | . . . . . . Energy Cannon . | . . . . . . Ballistic Gun 11 | 2 5 1 . 2 1 Ballistic Cannon 3 | . . . . . 3 Launcher 5 | . . . . 1 4 Special Weapon . | . . . . . . Impact Weapon 1 | . . . . . 1 Slashing Weapon 5 | . 3 . . 1 1 Piercing Weapon . | . . . . . . Special Melee Weapon 2 | . . . 1 1 . Unidentified Prototypes . | . . . . . . Parts Lost 17 | . . . . 5 12 Power 2 | . . . . 1 1 Propulsion 5 | . . . . 3 2 Utility 5 | . . . . . 5 Weapon 5 | . . . . 1 4 Highest Loss Streak 9 | . . . . 4 9 To Critical Strikes . | . . . . . . Average Slot Usage (%) 94 | . 95 100 100 91 75 Engine 13 | . 14 14 14 14 8 Treads 22 | . 28 28 28 12 . Leg 4 | . . . . 15 16 Device 1 | . 4 . . . 8 Storage 13 | . 14 14 14 14 9 Processor 12 | . 5 14 14 14 19 Ballistic Gun 19 | . 22 28 21 11 4 Launcher 1 | . . . . 7 4 Slashing Weapon 1 | . 5 . . . . Special Melee Weapon 2 | . . . 6 . . Naked Turns . | . . . . . . Heaviest Build 39 | 13 19 19 19 23 39 Greatest Support 46 | 40 46 40 40 40 20 Greatest Overweight (x) 6 | 1 . . . 1 6 Average Overweight (x) . | . . . . . 1 Largest Inventory Capacity 10 | 8 10 10 10 10 10 Average Capacity 9 | 7 9 10 10 10 10 Most Carried 10 | 4 10 10 10 10 9 Average Carried 8 | 2 8 10 10 8 7 Final Capacity 10 | 8 10 10 10 10 10 Final Carried 10 | 4 10 10 10 8 4 Class Distribution -------------------- 92% | Mutant 7% | Scavenger-Mutant Dominant Class ---------------- Mutant | -10/Materials Mutant | -10/Mines Mutant | -10/Exiles Mutant | -9/Mines Scavenger-Mutant | -8/Materials Resources | -11 -10 -10 -10 -9 -8 ----------- Run | Yrd Mat Min Exi Min Mat Matter Collected 1096 | 201 299 244 . 229 123 Remotely . | . . . . . . Salvage Created 866 | . 417 47 . 91 311 Parts 72 | . 39 6 . 6 21 Haulers Intercepted 3 | . 2 . . . 1 Recyclers Shooed 1 | . 1 . . . . Parts Field Recycled . | . . . . . . Retrieved Matter . | . . . . . . Parts Self-Destructed . | . . . . . . Prevented . | . . . . . . Kills | -11 -10 -10 -10 -9 -8 ------- Run | Yrd Mat Min Exi Min Mat Combat Hostiles Destroyed 25 | . 12 3 . 5 5 Guns 17 | . 12 3 . 2 . Cannons 2 | . . . . . 2 AOE 6 | . . . . 3 3 Classes Destroyed 9 | . 6 . . 1 2 Worker 1 | . . . . . 1 Builder 2 | . 1 . . . 1 Hauler 3 | . 2 . . . 1 Operator 2 | . 1 . . . 1 Watcher 1 | . 1 . . . . Swarmer 14 | . 9 3 . 2 . Grunt 9 | . 3 . . 2 4 Duelist 1 | . . . . 1 . Sentry 1 | . . . . . 1 Best Kill Streak 4 | . 4 3 . 2 3 Combat Bots Only 4 | . 4 3 . 2 2 Max Kills in Single Turn 2 | . 1 1 . 1 2 Gunslinging . | . . . . . . Exploded 1 | . . . . 1 1 Melee . | . . . . . . Uniques/NPCs Destroyed . | . . . . . . Combat | -11 -10 -10 -10 -9 -8 -------- Run | Yrd Mat Min Exi Min Mat Hostile Shots Fired 184 | . 56 19 . 28 81 Missed 52 | . 13 10 . 6 23 Damage Taken 2370 | . 387 85 . 585 1313 Core 788 | . 79 7 . 148 554 Absorbed by Shields . | . . . . . . Regen/Repaired (Parts) 79 | . . . . . 79 Core Remaining (%) 53 | 100 . . . 6 . Volleys Fired 97 | . 52 8 . 16 21 Largest 2 | . 2 2 . 2 2 Hottest 50 | . 40 40 . 40 50 Shots Fired 164 | . 102 16 . 20 26 Gun 132 | . 102 16 . 8 6 Cannon 7 | . . . . . 7 Launcher 25 | . . . . 12 13 Special . | . . . . . . Kinetic 139 | . 102 16 . 8 13 Thermal . | . . . . . . Explosive 20 | . . . . 12 8 Electromagnetic 5 | . . . . . 5 Robot Hit Streak 11 | . 8 4 . 3 11 Robot Miss Streak 5 | . 4 3 . 1 5 Penetration Max . | . . . . . . Secondary Targets 1 | . 1 . . . . Max Gunslinging Chain 1 | . 1 . . . . Shots Hit Robots 99 | . 62 8 . 9 20 Core Hits 61 | . 25 5 . 7 24 Critical Kills . | . . . . . . Critical Parts Destroyed . | . . . . . . Critical Strikes . | . . . . . . Melee Attacks 27 | . 22 . 1 4 . Impact . | . . . . . . Slashing 26 | . 22 . . 4 . Piercing . | . . . . . . Sneak Attacks 2 | . 2 . . . . Combat Hostiles . | . . . . . . Follow-up Attacks . | . . . . . . Damage Inflicted 1965 | . 917 128 . 353 567 Guns 1059 | . 772 128 . 93 66 Cannons 125 | . . . . . 125 Explosions 636 | . . . . 260 376 Melee 145 | . 145 . . . . Ramming . | . . . . . . Kinetic 1172 | . 772 128 . 93 179 Thermal . | . . . . . . Explosive 523 | . . . . 260 263 Electromagnetic 113 | . . . . . 113 Impact 12 | . . . . . 12 Slashing 145 | . 145 . . . . Piercing . | . . . . . . Highest Corruption . | . . . . . . Average Corruption . | . . . . . . Corruption Purged . | . . . . . . Corruption Blocked . | . . . . . . Overload Shots . | . . . . . . Overflow Damage 36 | . 9 . . 17 10 Projectiles . | . . . . . . Explosions 27 | . . . . 17 10 Melee 9 | . 9 . . . . Knockbacks . | . . . . . . Impact . | . . . . . . Kinetic . | . . . . . . Secondary . | . . . . . . Self-Inflicted Damage 138 | . . . . 92 46 Shots 6 | . . . . 4 2 Rammed . | . . . . . . Targets Rammed . | . . . . . . Kicked . | . . . . . . Crushed . | . . . . . . Highest Temperature 22 | . . 5 . 1 22 Average Temperature 6 | . . 5 . 1 7 Received Heat Transfer 429 | . 84 24 . 6 315 Siege Activations . | . . . . . . Robots Corrupted . | . . . . . . Combat Hostiles . | . . . . . . Parts Fried . | . . . . . . Impact Corruptions . | . . . . . . Robots Melted . | . . . . . . Combat Hostiles . | . . . . . . Parts Melted . | . . . . . . Heat Transferred . | . . . . . . Parts Sabotaged . | . . . . . . Parts Stolen . | . . . . . . Parts Stripped . | . . . . . . Power Chain Reactions . | . . . . . . Alert | -11 -10 -10 -10 -9 -8 ------- Run | Yrd Mat Min Exi Min Mat Peak Influence 239 | . 210 175 . 239 201 Initial 41 | . . 39 . . 41 Average 85 | . 75 106 . 85 92 Maximum Alert Level 1 | . 1 . . 1 1 Low Security (%) 94 | 100 94 100 . 92 91 Level 1 5 | . 5 . . 7 8 Level 2 . | . . . . . . Level 3 . | . . . . . . Level 4 . | . . . . . . Level 5 . | . . . . . . High Security . | . . . . . . Max Security . | . . . . . . Squads Dispatched 3 | . 2 . . . 1 Investigation 1 | . 1 . . . . Extermination . | . . . . . . Reinforcement 2 | . 1 . . . 1 Assault . | . . . . . . Garrison . | . . . . . . Intercept . | . . . . . . Searches Triggered . | . . . . . . Construction Impeded . | . . . . . . Haulers Reinforced . | . . . . . . Active Scanning Responses . | . . . . . . Cargo Convoy Interrupts . | . . . . . . Stealth | -11 -10 -10 -10 -9 -8 --------- Run | Yrd Mat Min Exi Min Mat Distress Signals 1 | . 1 . . . . Communications Jammed . | . . . . . . Distress Signals . | . . . . . . Times Spotted 67 | . 33 8 . 10 16 Peak Tracking Total 8 | . 5 3 . 3 8 Tactical Retreats 4 | . 2 . . 1 1 Traps | -11 -10 -10 -10 -9 -8 ------- Run | Yrd Mat Min Exi Min Mat Traps Triggered 1 | . 1 . . . . Indirectly . | . . . . . . Trap Hack Attempts . | . . . . . . Triggered . | . . . . . . Disarmed . | . . . . . . Reprogrammed . | . . . . . . Reused . | . . . . . . Traps Extracted . | . . . . . . Installed . | . . . . . . Triggered . | . . . . . . Machines | -11 -10 -10 -10 -9 -8 ---------- Run | Yrd Mat Min Exi Min Mat Machines Disabled 12 | . 1 1 . 9 1 Max in Single Turn 5 | . 1 1 . 5 1 Machines Repaired . | . . . . . . Machines Dismantled . | . . . . . . Machines Sabotaged . | . . . . . . Overloaded Fab Kills . | . . . . . . Hacking | -11 -10 -10 -10 -9 -8 --------- Run | Yrd Mat Min Exi Min Mat Machines Accessed 15 | . 9 1 4 . 1 Terminals 6 | . 6 . . . . Fabricators . | . . . . . . Repair Stations 2 | . 1 . . . 1 Recycling Units 2 | . 2 . . . . Scanalyzers . | . . . . . . Garrison Access . | . . . . . . Total Hacks 39 | . 28 1 4 . 6 Successful 18 | . 9 1 4 . 4 Failed 21 | . 19 . . . 2 Catastrophic 3 | . 3 . . . . Database Lockouts . | . . . . . . Manual 17 | . 5 . 12 . . Terminals 20 | . 20 . . . . Fabricators . | . . . . . . Repair Stations 9 | . 3 . . . 6 Recycling Units 5 | . 5 . . . . Scanalyzers . | . . . . . . Garrison Access . | . . . . . . Terminal Hacks 14 | . 9 1 4 . . Record 5 | . 1 . 4 . . Robot Analysis 1 | . 1 . . . . Prototype ID Bank 3 | . 3 . . . . Open Door 1 | . . 1 . . . Branch Access Points 1 | . 1 . . . . Terminal Index 1 | . 1 . . . . Unreport Threat 1 | . 1 . . . . Locate Traps 1 | . 1 . . . . Fabricator Hacks . | . . . . . . Repair Station Hacks 4 | . . . . . 4 Scan Component 2 | . . . . . 2 Repair 2 | . . . . . 2 Recycling Unit Hacks . | . . . . . . Scanalyzer . | . . . . . . Garrison Access Hacks . | . . . . . . Unauthorized Hacks . | . . . . . . Terminals . | . . . . . . Fabricators . | . . . . . . Repair Stations . | . . . . . . Recycling Units . | . . . . . . Scanalyzers . | . . . . . . Garrison Access . | . . . . . . Data Cores Recovered . | . . . . . . Used . | . . . . . . Hacking Detections 10 | . 9 . . . 1 Full Trace Events . | . . . . . . Feedback Events . | . . . . . . Feedback Blocked . | . . . . . . Robot Schematics Acquired . | . . . . . . Robots Built . | . . . . . . Authchips . | . . . . . . Time . | . . . . . . Total Robot Build Rating . | . . . . . . Part Schematics Acquired . | . . . . . . Parts Built . | . . . . . . Authchips . | . . . . . . Time . | . . . . . . Total Part Build Rating . | . . . . . . Parts Repaired 2 | . . . . . 2 Time 52 | . . . . . 52 Parts Recycled . | . . . . . . Recycled Matter . | . . . . . . Retrieved Matter . | . . . . . . Retrieved Components . | . . . . . . Parts Scanalyzed . | . . . . . . Part Schematics Acquired . | . . . . . . Parts Damaged . | . . . . . . Bothacking | -11 -10 -10 -10 -9 -8 ------------ Run | Yrd Mat Min Exi Min Mat Used RIF Installer . | . . . . . . Robots Hacked . | . . . . . . Non-combat . | . . . . . . Combat . | . . . . . . Robot Hacks Applied . | . . . . . . Relay Couplers Released . | . . . . . . Fabnet Peak Effective % . | . . . . . . Robots Rewired . | . . . . . . Allies Hacked . | . . . . . . Hacks Repelled . | . . . . . . Allies | -11 -10 -10 -10 -9 -8 -------- Run | Yrd Mat Min Exi Min Mat Total Allies 3 | . . 3 . . . Largest Group 3 | . . 3 2 2 . Highest-Rated Group 40 | . . 40 24 24 . Highest-Rated Ally 16 | . . 16 16 16 . Total Orders . | . . . . . . Ally Attacks 28 | . . 20 . 8 . Total Damage 297 | . . 225 . 72 . Kills 7 | . . 5 . 2 . Allies Corrupted . | . . . . . . Allies Melted . | . . . . . . Intel | -11 -10 -10 -10 -9 -8 ------- Run | Yrd Mat Min Exi Min Mat Robot Analysis Total 1 | . 1 . . . . Derelict Logs Recovered 1 | . . 1 . . . Drone Launches . | . . . . . . Drone Recoveries . | . . . . . . Exploration | -11 -10 -10 -10 -9 -8 ------------- Run | Yrd Mat Min Exi Min Mat Turns Passed 5632 | 68 1350 826 1768 1137 483 Spaces Moved 3134 | 37 619 495 1103 698 182 Core 14 | 5 . . . . 9 Treads 2529 | 32 619 495 1103 280 . Legs 591 | . . . . 418 173 Wheels . | . . . . . . Hover . | . . . . . . Flight . | . . . . . . Fastest Speed 50 | 50 160 160 160 120 190 Average Speed 159 | 150 160 160 160 148 191 Slowest Speed 350 | 160 160 160 160 190 350 Overloaded Moves . | . . . . . . Propulsion Burnouts . | . . . . . . Robots Hopped . | . . . . . . Cave-ins Triggered . | . . . . . . Exploration Rate (%) 65 | 4 95 88 94 98 16 Regions Visited 5 Branch Regions 3 Pre-discovered Areas . | . . . . . . Known Exits Taken 3 | . 1 . 1 1 . Unknown Exits Taken 2 | 1 . 1 . . . Scrap Searched 5 | . . 1 . 4 . Spaces Dug 32 | . 8 . . 16 8 Terrain Destroyed 147 | . 8 . . 76 63 Melee 8 | . 8 . . . . Projectile . | . . . . . . AOE 139 | . . . . 76 63 Terrain Rammed . | . . . . . . Walls Destroyed . | . . . . . . Machines Disabled . | . . . . . . Actions | -11 -10 -10 -10 -9 -8 --------- Run | Yrd Mat Min Exi Min Mat Total 3554 | 46 833 513 1105 768 289 Wait 216 | . 113 8 1 38 56 Move 3129 | 36 618 494 1102 697 182 Hop . | . . . . . . Pick Up 21 | 4 10 . . 2 5 Fast Attach 13 | 6 . . . . 7 Attach 16 | . 2 . . 4 10 Detach 3 | . . . . . 3 Swap 21 | . 9 2 1 7 2 Drop 10 | . 7 1 . . 2 Fire 97 | . 52 8 . 16 21 Melee 27 | . 22 . 1 4 . Ram . | . . . . . . Kick . | . . . . . . Crush . | . . . . . . Escape Stasis . | . . . . . . Rewire 1 | . . . . . 1 Trap . | . . . . . . Miscellaneous . | . . . . . . Route ------- -11/Scrapyard -10/Materials (discovered 6 exits: [*Mat x3] / *Min x2 / [*Sub]) -10/Mines (discovered 3 exits: [*Mat x2] / *Exi) -10/Exiles (discovered 2 exits: *Min x2) -9/Mines (discovered 2 exits: *Mat x2) -8/Materials (discovered 1 exit: [*Fac]) History --------- Turn | Location | Event 10 | -11/Scrapyard | Discovered new exit (range 15) 69 | -11/Scrapyard | Entered Materials 237 | -10/Materials | Discovered new exit (range 10) 309 | -10/Materials | Build established: Mutant 315 | -10/Materials | Discovered new exit (range 15) 581 | -10/Materials | Identified exit to Mines 822 | -10/Materials | Discovered new exit (range 6) 1065 | -10/Materials | Discovered new exit (range 3) 1398 | -10/Materials | Discovered new exit (range 14) 1419 | -10/Materials | Entered Mines 1471 | -10/Mines | Assisted by bots powering up and referring to "LRC-V3" 1500 | -10/Mines | Discovered new exit (range 4) 1547 | -10/Mines | Discovered new exit (range 7) 2091 | -10/Mines | Found a hidden stash of uninstalled traps 2158 | -10/Mines | Found the Drone Emporium 2235 | -10/Mines | Deemed a non-threat by the Exiles lab entrance 2237 | -10/Mines | Discovered new exit (range 5) 2245 | -10/Mines | Entered Exiles 2245 | -10/Exiles | Found Exiles lab abandoned 2245 | -10/Exiles | Accompanied by 2 allies 2246 | -10/Exiles | Identified exit to Mines 4013 | -10/Exiles | Entered Mines 4013 | -9/Mines | Accompanied by 2 allies 4014 | -9/Mines | Assembled infested the area 4145 | -9/Mines | Discovered new exit (range 5) 4498 | -9/Mines | Core integrity fell below 50% 4514 | -9/Mines | Core integrity fell below 20% 4548 | -9/Mines | Lost 4 parts (1p2n1w) 4628 | -9/Mines | Discovered new exit (range 9) 5150 | -9/Mines | Identified exit to Materials 5150 | -9/Mines | Entered Materials 5150 | -8/Materials | Evolved 4 slots: Utility x4 5256 | -8/Materials | Repaired Grenade Launcher 5289 | -8/Materials | Repaired Aluminum Leg 5443 | -8/Materials | Build established: Scavenger-Mutant 5557 | -8/Materials | Discovered new exit (range 18) 5590 | -8/Materials | Lost 3 parts (2u1w) 5601 | -8/Materials | Core integrity fell below 50% 5606 | -8/Materials | Core integrity fell below 20% 5633 | -8/Materials | Destroyed by Y-45 Defender with Heavy Assault Rifle Last Messages --------------- 05597_ Knocked back. 05597_ U-05 Engineer lays Concrete. 05599_ Rnf. Ion Engine destroyed. 05600_ K-01 Serf collects debris. 05600_ U-05 Engineer lays Concrete. 05601_ Hacking Suite destroyed. 05601_ Critical hit (Blast). 05601_ U-05 Engineer lays Concrete. 05602_ The unstable cave ceiling collapses. 05602_ U-05 Engineer lays Concrete. 05603_ Adv. Targeting Computer destroyed. 05603_ Critical hit (Blast). 05604_ K-01 Serf collects debris. 05604_ U-05 Engineer destroyed. 05607_ K-01 Serf collects debris. 05607_ Acquired 2 matter. 05622_ G-47 Trooper destroyed. 05627_ Flak Cannon destroyed. 05627_ Acquired Aluminum Leg. 05633_ Critical hit (Burn: +37). Map ----- +----------------------------------------------------+ | ????????????????????????? ?????????????????????? | | ????????????????????????? ?????????????????????? | | ????????????????????????? #????????????????????? | | ????????????????????????# #????????????????????? | | ????????????????????????# #????????????????????? | | ????????????????????????# #????????????????????? | | ????????????????????????# #????????????????????? | | ????????????????????????/ #????????????????????? | | ????????????????????????# #????????????????????? | | ???????????????#####????# #????????????????????? | | ################ ###### #????????????????????? | | + #????????????????????? | | ! ########## ###### #????????????????????? | | #????????## ####### ###??##??????????????? | | #?????????# # ## ###############??????? | | ]#?????????# # # **=%== ?????? | | #?????????# # ! # =%==[=!